[Event "*** Titled Tuesday Blitz"]
[Site "Chess.com"]
[Date "2021.02.02"]
[Round "5"]
[White "manmanlai1"]
[Black "RobertoJBM"]
[Result "1/2-1/2"]
[WhiteElo "2472"]
[BlackElo "2773"]
[TimeControl "180+1"]
[EndTime "11:00:18 PST"]
[Termination "Game drawn by repetition"]

1. d4 {[%clk 0:03:00.9]} 1... d5 {[%clk 0:02:59.9]} 2. c4 {[%clk 0:03:01.1]}
2... c6 {[%clk 0:03:00.1]} 3. Nc3 {[%clk 0:03:01.1]} 3... Nf6 {[%clk 0:02:59.3]}
4. e3 {[%clk 0:03:01.2]} 4... Bf5 {[%clk 0:02:57.3]} 5. Nf3 {[%clk 0:03:01.1]}
5... e6 {[%clk 0:02:56.7]} 6. Be2 {[%clk 0:03:01]} 6... h6 {[%clk 0:02:56.3]} 7.
O-O {[%clk 0:03:00]} 7... Nbd7 {[%clk 0:02:55.7]} 8. b3 {[%clk 0:03:00.1]} 8...
Bd6 {[%clk 0:02:55]} 9. Bb2 {[%clk 0:03:00.6]} 9... O-O {[%clk 0:02:54.3]} 10.
Rc1 {[%clk 0:02:59.8]} 10... Qe7 {[%clk 0:02:54.3]} 11. Re1 {[%clk 0:02:44.1]}
11... a5 {[%clk 0:02:50.1]} 12. Bd3 {[%clk 0:02:34.4]} 12... Bxd3 {[%clk
0:02:25.1]} 13. Qxd3 {[%clk 0:02:35.3]} 13... Bb4 {[%clk 0:02:20]} 14. Red1
{[%clk 0:02:31.9]} 14... Rfd8 {[%clk 0:02:16.6]} 15. Nd2 {[%clk 0:02:19.6]}
15... Rac8 {[%clk 0:01:50.9]} 16. Qe2 {[%clk 0:02:13.8]} 16... Ra8 {[%clk
0:01:45.4]} 17. e4 {[%clk 0:02:01.5]} 17... dxe4 {[%clk 0:01:40.4]} 18. Ndxe4
{[%clk 0:01:58.2]} 18... Nxe4 {[%clk 0:01:41.3]} 19. Nxe4 {[%clk 0:01:55.2]}
19... Ba3 {[%clk 0:01:38.7]} 20. Rc3 {[%clk 0:01:43]} 20... Bxb2 {[%clk
0:01:36.6]} 21. Qxb2 {[%clk 0:01:42.4]} 21... Nf6 {[%clk 0:01:36.7]} 22. Ng3
{[%clk 0:01:32.4]} 22... a4 {[%clk 0:01:31.6]} 23. b4 {[%clk 0:01:29.5]} 23...
b5 {[%clk 0:01:29.3]} 24. cxb5 {[%clk 0:01:27.9]} 24... cxb5 {[%clk 0:01:29.4]}
25. Rc5 {[%clk 0:01:27.5]} 25... Rab8 {[%clk 0:01:29.4]} 26. h3 {[%clk
0:01:25.9]} 26... Qd6 {[%clk 0:01:26.4]} 27. Qe2 {[%clk 0:01:19.7]} 27... Nd5
{[%clk 0:01:19]} 28. a3 {[%clk 0:01:14.5]} 28... Qd7 {[%clk 0:01:15.2]} 29. Ne4
{[%clk 0:01:07.7]} 29... Ne7 {[%clk 0:01:13.4]} 30. Nc3 {[%clk 0:00:56.5]} 30...
Nf5 {[%clk 0:01:05.3]} 31. Nxb5 {[%clk 0:00:46.5]} 31... g6 {[%clk 0:00:42.8]}
32. d5 {[%clk 0:00:34.4]} 32... exd5 {[%clk 0:00:41]} 33. Nd4 {[%clk 0:00:17.7]}
33... Ne7 {[%clk 0:00:30.2]} 34. Re1 {[%clk 0:00:15.7]} 34... Re8 {[%clk
0:00:29.1]} 35. Qc2 {[%clk 0:00:14.5]} 35... h5 {[%clk 0:00:22.1]} 36. b5 {[%clk
0:00:14.6]} 36... Rb7 {[%clk 0:00:21.4]} 37. g3 {[%clk 0:00:13.1]} 37... Ra8
{[%clk 0:00:20.9]} 38. h4 {[%clk 0:00:13.1]} 38... Qd6 {[%clk 0:00:20.5]} 39.
Qc3 {[%clk 0:00:12.4]} 39... Qf6 {[%clk 0:00:20.4]} 40. Nc6 {[%clk 0:00:12]}
40... Qxc3 {[%clk 0:00:18.5]} 41. Rxc3 {[%clk 0:00:10.4]} 41... Nxc6 {[%clk
0:00:17.6]} 42. bxc6 {[%clk 0:00:11.3]} 42... Rc7 {[%clk 0:00:18.1]} 43. Rd1
{[%clk 0:00:11.6]} 43... Rac8 {[%clk 0:00:17.6]} 44. Rdc1 {[%clk 0:00:10.3]}
44... Kf8 {[%clk 0:00:17.7]} 45. Kf1 {[%clk 0:00:09.9]} 45... Ke7 {[%clk
0:00:18.2]} 46. Ke2 {[%clk 0:00:10.1]} 46... Kd6 {[%clk 0:00:19.1]} 47. Kd3
{[%clk 0:00:08.5]} 47... Rxc6 {[%clk 0:00:19]} 48. Rxc6+ {[%clk 0:00:08.6]}
48... Rxc6 {[%clk 0:00:19.9]} 49. Rb1 {[%clk 0:00:09]} 49... Kc5 {[%clk
0:00:19.6]} 50. Rb4 {[%clk 0:00:08.9]} 50... Rb6 {[%clk 0:00:18.9]} 51. Rxa4
{[%clk 0:00:08.5]} 51... Rb3+ {[%clk 0:00:19.1]} 52. Ke2 {[%clk 0:00:08.2]}
52... d4 {[%clk 0:00:19.6]} 53. Ra7 {[%clk 0:00:07.5]} 53... Rb2+ {[%clk
0:00:18]} 54. Ke1 {[%clk 0:00:07.8]} 54... d3 {[%clk 0:00:18]} 55. Rxf7 {[%clk
0:00:07]} 55... Ra2 {[%clk 0:00:18.6]} 56. Rf6 {[%clk 0:00:06.3]} 56... Kd4
{[%clk 0:00:18.9]} 57. Rxg6 {[%clk 0:00:06.1]} 57... Ra1+ {[%clk 0:00:19.5]} 58.
Kd2 {[%clk 0:00:05.9]} 58... Ra2+ {[%clk 0:00:20.4]} 59. Ke1 {[%clk 0:00:06.4]}
59... Rxa3 {[%clk 0:00:21.3]} 60. Rd6+ {[%clk 0:00:05]} 60... Ke5 {[%clk
0:00:21.7]} 61. Rd8 {[%clk 0:00:04.9]} 61... Ke4 {[%clk 0:00:21.9]} 62. Re8+
{[%clk 0:00:04.5]} 62... Kd4 {[%clk 0:00:22.2]} 63. Rd8+ {[%clk 0:00:04.2]}
63... Kc3 {[%clk 0:00:20.4]} 64. Rc8+ {[%clk 0:00:04.5]} 64... Kd4 {[%clk
0:00:17.8]} 65. Rd8+ {[%clk 0:00:05.4]} 65... Ke4 {[%clk 0:00:16.5]} 66. Rf8
{[%clk 0:00:04.7]} 66... Ra1+ {[%clk 0:00:15.6]} 67. Kd2 {[%clk 0:00:05.1]}
67... Ra2+ {[%clk 0:00:16.1]} 68. Kd1 {[%clk 0:00:05.5]} 68... Kd4 {[%clk
0:00:15.1]} 69. Rd8+ {[%clk 0:00:04.9]} 69... Kc3 {[%clk 0:00:15.3]} 70. Rc8+
{[%clk 0:00:05.4]} 70... Kd4 {[%clk 0:00:16]} 71. Rd8+ {[%clk 0:00:05.8]} 71...
Kc3 {[%clk 0:00:16.4]} 72. Rc8+ {[%clk 0:00:06]} 72... Kd4 {[%clk 0:00:17]} 73.
Rd8+ {[%clk 0:00:06.1]} 1/2-1/2

[Event "*** Titled Tuesday Blitz"]
[Site "Chess.com"]
[Date "2021.02.02"]
[Round "5"]
[White "manipun1"]
[Black "Susal_De_Silva"]
[Result "0-1"]
[WhiteElo "2261"]
[BlackElo "2598"]
[TimeControl "180+1"]
[EndTime "11:00:23 PST"]
[Termination "Susal_De_Silva won on time"]

1. e4 {[%clk 0:03:00.9]} 1... e5 {[%clk 0:02:59]} 2. Nf3 {[%clk 0:03:00.9]} 2...
Nc6 {[%clk 0:02:59.1]} 3. Bc4 {[%clk 0:03:00.7]} 3... Nf6 {[%clk 0:02:59]} 4. d3
{[%clk 0:03:00.2]} 4... Bc5 {[%clk 0:02:59.2]} 5. c3 {[%clk 0:02:59.6]} 5... O-O
{[%clk 0:02:59.5]} 6. b4 {[%clk 0:02:59.3]} 6... Bb6 {[%clk 0:02:59]} 7. Nbd2
{[%clk 0:02:50.8]} 7... d5 {[%clk 0:02:57.3]} 8. Bb3 {[%clk 0:02:48.2]} 8... d4
{[%clk 0:02:52]} 9. b5 {[%clk 0:02:36.5]} 9... dxc3 {[%clk 0:02:42.8]} 10. bxc6
{[%clk 0:02:35.4]} 10... cxd2+ {[%clk 0:02:43.4]} 11. Qxd2 {[%clk 0:02:33.6]}
11... bxc6 {[%clk 0:02:43.7]} 12. Bb2 {[%clk 0:02:31]} 12... Nd7 {[%clk
0:02:37.9]} 13. Nxe5 {[%clk 0:02:28]} 13... Nxe5 {[%clk 0:02:38.8]} 14. Bxe5
{[%clk 0:02:28]} 14... Ba6 {[%clk 0:02:36.2]} 15. O-O {[%clk 0:02:25.8]} 15...
Bxd3 {[%clk 0:02:27.2]} 16. Rfe1 {[%clk 0:02:23.6]} 16... Re8 {[%clk 0:02:19.9]}
17. Qf4 {[%clk 0:02:22.1]} 17... Qe7 {[%clk 0:02:01.8]} 18. Rad1 {[%clk
0:01:52]} 18... Ba6 {[%clk 0:02:00]} 19. Bb2 {[%clk 0:01:37.8]} 19... Rad8
{[%clk 0:01:49.7]} 20. e5 {[%clk 0:01:31.5]} 20... c5 {[%clk 0:01:31.7]} 21. h3
{[%clk 0:01:11.6]} 21... Bc8 {[%clk 0:01:03.9]} 22. Bc4 {[%clk 0:00:56.8]} 22...
Be6 {[%clk 0:01:01.9]} 23. a4 {[%clk 0:00:56.3]} 23... a5 {[%clk 0:00:55.9]} 24.
Bc3 {[%clk 0:00:54]} 24... h6 {[%clk 0:00:45.2]} 25. Qe4 {[%clk 0:00:44.5]}
25... Rd7 {[%clk 0:00:40]} 26. Rxd7 {[%clk 0:00:37.9]} 26... Bxd7 {[%clk
0:00:39.1]} 27. Bb3 {[%clk 0:00:34.7]} 27... Be6 {[%clk 0:00:38.8]} 28. Bc4
{[%clk 0:00:34.2]} 28... Rd8 {[%clk 0:00:37.8]} 29. f4 {[%clk 0:00:31.7]} 29...
Qd7 {[%clk 0:00:34.3]} 30. f5 {[%clk 0:00:31.2]} 30... Bxf5 {[%clk 0:00:31.8]}
31. Qf4 {[%clk 0:00:26.1]} 31... Be6 {[%clk 0:00:31]} 32. Kh1 {[%clk 0:00:23.9]}
32... Qe7 {[%clk 0:00:26.2]} 33. Rf1 {[%clk 0:00:21.2]} 33... Qg5 {[%clk
0:00:21.5]} 34. Bxe6 {[%clk 0:00:18.7]} 34... Qxf4 {[%clk 0:00:20.3]} 35. Rxf4
{[%clk 0:00:16.6]} 35... fxe6 {[%clk 0:00:20.9]} 36. Rc4 {[%clk 0:00:12.8]}
36... Rd1+ {[%clk 0:00:21.1]} 37. Kh2 {[%clk 0:00:12.4]} 37... Rc1 {[%clk
0:00:21.7]} 38. Kg3 {[%clk 0:00:11.7]} 38... g5 {[%clk 0:00:21.4]} 39. Kf3
{[%clk 0:00:11.8]} 39... Kh7 {[%clk 0:00:21.6]} 40. Ke3 {[%clk 0:00:11.6]} 40...
Kg6 {[%clk 0:00:22.2]} 41. Kd2 {[%clk 0:00:11.7]} 41... Rg1 {[%clk 0:00:22.1]}
42. g4 {[%clk 0:00:11]} 42... Rg3 {[%clk 0:00:21.9]} 43. Re4 {[%clk 0:00:10.2]}
43... Rxh3 {[%clk 0:00:21.2]} 44. Re2 {[%clk 0:00:09.7]} 44... Rg3 {[%clk
0:00:21.1]} 45. Rf2 {[%clk 0:00:09.6]} 45... Rxg4 {[%clk 0:00:21]} 46. Rf6+
{[%clk 0:00:10]} 46... Kh5 {[%clk 0:00:21.6]} 47. Rxe6 {[%clk 0:00:10.9]} 47...
Rf4 {[%clk 0:00:20.2]} 48. Re8 {[%clk 0:00:10.9]} 48... c4 {[%clk 0:00:19.4]}
49. e6 {[%clk 0:00:11.1]} 49... Bc5 {[%clk 0:00:19.7]} 50. Rc8 {[%clk
0:00:10.6]} 50... Bd6 {[%clk 0:00:19.1]} 51. Re8 {[%clk 0:00:09.6]} 51... Kg4
{[%clk 0:00:18.5]} 52. Ke3 {[%clk 0:00:07.2]} 52... Rf3+ {[%clk 0:00:17.6]} 53.
Kd4 {[%clk 0:00:07.2]} 53... Rf4+ {[%clk 0:00:17.3]} 54. Ke3 {[%clk 0:00:07.1]}
54... Bc5+ {[%clk 0:00:17.8]} 55. Ke2 {[%clk 0:00:06.7]} 55... h5 {[%clk
0:00:18]} 56. Bxa5 {[%clk 0:00:06.3]} 56... h4 {[%clk 0:00:17.8]} 57. Bxc7
{[%clk 0:00:06.4]} 57... Re4+ {[%clk 0:00:18.4]} 58. Kf1 {[%clk 0:00:06.3]}
58... c3 {[%clk 0:00:18.6]} 59. Ba5 {[%clk 0:00:04.2]} 59... c2 {[%clk
0:00:18.4]} 60. Bd2 {[%clk 0:00:05.1]} 60... h3 {[%clk 0:00:16.8]} 61. a5 {[%clk
0:00:02]} 61... Be3 {[%clk 0:00:16.1]} 62. Bxe3 {[%clk 0:00:01.3]} 62... Rxe3
{[%clk 0:00:17]} 63. Rc8 {[%clk 0:00:01.5]} 63... h2 {[%clk 0:00:16.6]} 64. Kg2
{[%clk 0:00:01.8]} 64... Re2+ {[%clk 0:00:16.4]} 65. Kh1 {[%clk 0:00:02.7]}
65... Re1+ {[%clk 0:00:16.7]} 66. Kxh2 {[%clk 0:00:02.2]} 66... c1=Q {[%clk
0:00:09.3]} 67. e7 {[%clk 0:00:03.1]} 67... Qxc8 {[%clk 0:00:08.6]} 0-1

[Event "*** Titled Tuesday Blitz"]
[Site "Chess.com"]
[Date "2021.02.02"]
[Round "5"]
[White "GMJustin"]
[Black "dosto07"]
[Result "1-0"]
[WhiteElo "2316"]
[BlackElo "2417"]
[TimeControl "180+1"]
[EndTime "11:00:25 PST"]
[Termination "GMJustin won on time"]

1. e4 {[%clk 0:02:55.4]} 1... e5 {[%clk 0:02:59]} 2. Nf3 {[%clk 0:02:54.8]} 2...
Nc6 {[%clk 0:02:59.5]} 3. Be2 {[%clk 0:02:53.4]} 3... Nf6 {[%clk 0:02:57.8]} 4.
d3 {[%clk 0:02:50.9]} 4... Bc5 {[%clk 0:02:56.8]} 5. O-O {[%clk 0:02:49.2]} 5...
O-O {[%clk 0:02:55.5]} 6. Nxe5 {[%clk 0:02:38.9]} 6... Nxe5 {[%clk 0:02:54.3]}
7. d4 {[%clk 0:02:38.5]} 7... Bb6 {[%clk 0:02:48.5]} 8. dxe5 {[%clk 0:02:36.5]}
8... Nxe4 {[%clk 0:02:47.3]} 9. Qd5 {[%clk 0:02:21.1]} 9... Nc5 {[%clk
0:02:45.1]} 10. Nc3 {[%clk 0:02:12.3]} 10... d6 {[%clk 0:02:44.9]} 11. exd6
{[%clk 0:02:04.3]} 11... Be6 {[%clk 0:02:44.5]} 12. Qd1 {[%clk 0:01:47.9]} 12...
Qxd6 {[%clk 0:02:43.8]} 13. Qxd6 {[%clk 0:01:46.8]} 13... cxd6 {[%clk
0:02:43.7]} 14. Bf3 {[%clk 0:01:46.4]} 14... Rab8 {[%clk 0:02:26.4]} 15. Bf4
{[%clk 0:01:44.8]} 15... Rfd8 {[%clk 0:02:18.2]} 16. Rad1 {[%clk 0:01:28.7]}
16... Bf5 {[%clk 0:02:11.5]} 17. Bxd6 {[%clk 0:01:14.5]} 17... Rbc8 {[%clk
0:02:01.6]} 18. Nd5 {[%clk 0:00:48.4]} 18... Kh8 {[%clk 0:01:53.7]} 19. Nxb6
{[%clk 0:00:33.8]} 19... axb6 {[%clk 0:01:52]} 20. Bxc5 {[%clk 0:00:32.5]} 20...
bxc5 {[%clk 0:01:45.7]} 21. Bxb7 {[%clk 0:00:31.1]} 21... Rb8 {[%clk 0:01:37.3]}
22. Rxd8+ {[%clk 0:00:15.3]} 22... Rxd8 {[%clk 0:01:36.5]} 23. c3 {[%clk
0:00:12.1]} 23... Rd2 {[%clk 0:01:33.7]} 24. Re1 {[%clk 0:00:10.5]} 24... g5
{[%clk 0:01:31.1]} 25. b4 {[%clk 0:00:09.1]} 25... c4 {[%clk 0:01:16.5]} 26. Ba6
{[%clk 0:00:04.4]} 26... Bd3 {[%clk 0:01:14.5]} 27. h3 {[%clk 0:00:03]} 27...
Rxa2 {[%clk 0:01:13.7]} 28. b5 {[%clk 0:00:02.6]} 28... Kg7 {[%clk 0:01:10.1]}
29. Re8 {[%clk 0:00:02.7]} 29... Ra3 {[%clk 0:01:08.4]} 30. b6 {[%clk
0:00:02.5]} 30... Rxa6 {[%clk 0:01:03.6]} 31. b7 {[%clk 0:00:02]} 31... Ra1+
{[%clk 0:01:03]} 32. Kh2 {[%clk 0:00:01.8]} 32... Rb1 {[%clk 0:01:03.4]} 33.
b8=Q {[%clk 0:00:01]} 33... Rxb8 {[%clk 0:01:03.9]} 34. Rxb8 {[%clk 0:00:01.7]}
34... h5 {[%clk 0:01:02.6]} 35. Kg3 {[%clk 0:00:01.7]} 35... Kf6 {[%clk
0:01:01.9]} 36. h4 {[%clk 0:00:01.9]} 36... g4 {[%clk 0:00:59.4]} 37. Rb5 {[%clk
0:00:02]} 37... Kg6 {[%clk 0:00:55.7]} 38. Kf4 {[%clk 0:00:02.8]} 38... Bf1
{[%clk 0:00:53.8]} 39. Rb6+ {[%clk 0:00:02.9]} 39... f6 {[%clk 0:00:53]} 40. g3
{[%clk 0:00:03.5]} 40... Bd3 {[%clk 0:00:51.8]} 41. Rc6 {[%clk 0:00:03.7]} 41...
Bf1 {[%clk 0:00:51.2]} 42. Rc5 {[%clk 0:00:03.8]} 42... Bd3 {[%clk 0:00:50.7]}
43. f3 {[%clk 0:00:03.4]} 43... gxf3 {[%clk 0:00:49.5]} 44. Kxf3 {[%clk
0:00:03.8]} 44... Bf1 {[%clk 0:00:47.8]} 45. Kf4 {[%clk 0:00:04.1]} 45... Bd3
{[%clk 0:00:47.5]} 46. Rc6 {[%clk 0:00:03.9]} 46... Bf1 {[%clk 0:00:46.5]} 47.
g4 {[%clk 0:00:03.7]} 47... hxg4 {[%clk 0:00:45.6]} 48. Kxg4 {[%clk 0:00:03.8]}
48... Be2+ {[%clk 0:00:42.5]} 49. Kf4 {[%clk 0:00:04]} 49... Kf7 {[%clk
0:00:21.2]} 50. Ke3 {[%clk 0:00:03.4]} 50... Bd3 {[%clk 0:00:18.3]} 51. h5
{[%clk 0:00:03.4]} 51... Kg7 {[%clk 0:00:18.2]} 52. Kd4 {[%clk 0:00:02.7]} 52...
Kh6 {[%clk 0:00:15.4]} 53. Rxf6+ {[%clk 0:00:02.1]} 53... Kxh5 {[%clk
0:00:15.4]} 54. Rc6 {[%clk 0:00:02.8]} 54... Kg5 {[%clk 0:00:14.7]} 55. Rxc4
{[%clk 0:00:03.7]} 55... Bf1 {[%clk 0:00:13.9]} 56. Rc8 {[%clk 0:00:03.4]} 56...
Kf6 {[%clk 0:00:13.7]} 57. Kd5 {[%clk 0:00:02.9]} 57... Ke7 {[%clk 0:00:13.6]}
58. Kc6 {[%clk 0:00:02.8]} 58... Bg2+ {[%clk 0:00:13.7]} 59. Kb6 {[%clk
0:00:02.7]} 59... Kd7 {[%clk 0:00:14.1]} 60. Rc7+ {[%clk 0:00:03]} 60... Kd6
{[%clk 0:00:13.3]} 61. c4 {[%clk 0:00:03.7]} 61... Be4 {[%clk 0:00:13]} 62. c5+
{[%clk 0:00:04.1]} 62... Ke6 {[%clk 0:00:13.1]} 63. c6 {[%clk 0:00:04]} 63...
Kd6 {[%clk 0:00:12.4]} 64. Rd7+ {[%clk 0:00:04.2]} 64... Ke6 {[%clk 0:00:12.4]}
65. Rd2 {[%clk 0:00:04.7]} 65... Ke7 {[%clk 0:00:10.8]} 66. Re2 {[%clk
0:00:04.3]} 1-0

[Event "*** Titled Tuesday Blitz"]
[Site "Chess.com"]
[Date "2021.02.02"]
[Round "5"]
[White "Sergienko_Sergey"]
[Black "PetrolulSah"]
[Result "1-0"]
[WhiteElo "2392"]
[BlackElo "2197"]
[TimeControl "180+1"]
[EndTime "11:00:35 PST"]
[Termination "Sergienko_Sergey won on time"]

1. e4 {[%clk 0:02:59.2]} 1... e5 {[%clk 0:02:54.1]} 2. Nf3 {[%clk 0:02:58.3]}
2... Nc6 {[%clk 0:02:53.6]} 3. Bc4 {[%clk 0:02:57.9]} 3... Bc5 {[%clk
0:02:52.9]} 4. c3 {[%clk 0:02:57.2]} 4... Nf6 {[%clk 0:02:53.1]} 5. d3 {[%clk
0:02:56.5]} 5... O-O {[%clk 0:02:52.2]} 6. O-O {[%clk 0:02:55.7]} 6... d5 {[%clk
0:02:52.2]} 7. exd5 {[%clk 0:02:54.7]} 7... Nxd5 {[%clk 0:02:53.1]} 8. Re1
{[%clk 0:02:44.1]} 8... Nb6 {[%clk 0:02:47.9]} 9. Bb5 {[%clk 0:02:41.2]} 9... f6
{[%clk 0:02:40.5]} 10. d4 {[%clk 0:02:11.8]} 10... exd4 {[%clk 0:02:37.7]} 11.
Bxc6 {[%clk 0:02:10.5]} 11... bxc6 {[%clk 0:02:35.1]} 12. cxd4 {[%clk
0:02:10.2]} 12... Bb4 {[%clk 0:02:31]} 13. Bd2 {[%clk 0:02:07.8]} 13... Nd5
{[%clk 0:02:17.5]} 14. Bxb4 {[%clk 0:01:59.8]} 14... Nxb4 {[%clk 0:02:18.4]} 15.
Qb3+ {[%clk 0:01:53.5]} 15... Nd5 {[%clk 0:02:17.9]} 16. Nc3 {[%clk 0:01:51.3]}
16... Bg4 {[%clk 0:02:15.3]} 17. Ne4 {[%clk 0:01:38.6]} 17... Rb8 {[%clk
0:02:10.1]} 18. Qa3 {[%clk 0:01:32.9]} 18... Bxf3 {[%clk 0:02:00.8]} 19. Qxf3
{[%clk 0:01:32.5]} 19... Rxb2 {[%clk 0:01:59.3]} 20. Qa3 {[%clk 0:01:30.6]}
20... Qb8 {[%clk 0:01:46.6]} 21. Nc5 {[%clk 0:01:20.9]} 21... Qb4 {[%clk
0:01:38.3]} 22. Qxb4 {[%clk 0:01:11.1]} 22... Rxb4 {[%clk 0:01:36.4]} 23. Rad1
{[%clk 0:01:03.5]} 23... Rfb8 {[%clk 0:01:30]} 24. Na6 {[%clk 0:01:02.5]} 24...
R4b6 {[%clk 0:01:13.4]} 25. Nxb8 {[%clk 0:01:01.6]} 25... Rxb8 {[%clk
0:01:14.3]} 26. Rb1 {[%clk 0:00:58.7]} 26... Rd8 {[%clk 0:01:06.2]} 27. Rb7
{[%clk 0:00:58.1]} 27... a5 {[%clk 0:01:02.6]} 28. g3 {[%clk 0:00:55.4]} 28...
a4 {[%clk 0:00:59.6]} 29. Rc1 {[%clk 0:00:51.9]} 29... a3 {[%clk 0:00:57.8]} 30.
Ra7 {[%clk 0:00:47.1]} 30... Nb4 {[%clk 0:00:53.7]} 31. Rxa3 {[%clk 0:00:44.7]}
31... Rxd4 {[%clk 0:00:53.7]} 32. Ra8+ {[%clk 0:00:41.7]} 32... Kf7 {[%clk
0:00:52.8]} 33. a3 {[%clk 0:00:41.3]} 33... Nd5 {[%clk 0:00:45.1]} 34. Rxc6
{[%clk 0:00:40.2]} 34... Rd2 {[%clk 0:00:41.3]} 35. a4 {[%clk 0:00:35.3]} 35...
g5 {[%clk 0:00:39.7]} 36. a5 {[%clk 0:00:30.3]} 36... g4 {[%clk 0:00:39.9]} 37.
a6 {[%clk 0:00:23.1]} 37... Rd1+ {[%clk 0:00:39.9]} 38. Kg2 {[%clk 0:00:22.3]}
38... Rd2 {[%clk 0:00:40.2]} 39. Kf1 {[%clk 0:00:22.1]} 39... Ra2 {[%clk
0:00:36.1]} 40. Ke1 {[%clk 0:00:18.8]} 40... h5 {[%clk 0:00:32.1]} 41. a7 {[%clk
0:00:15.4]} 41... Kg7 {[%clk 0:00:27.5]} 42. Rd8 {[%clk 0:00:13.9]} 42... Nb6
{[%clk 0:00:25.6]} 43. Rxc7+ {[%clk 0:00:13.5]} 43... Kg6 {[%clk 0:00:25.2]} 44.
Rb8 {[%clk 0:00:12]} 44... Nd5 {[%clk 0:00:22.3]} 45. Rg8+ {[%clk 0:00:10.9]}
45... Kf5 {[%clk 0:00:20.4]} 46. Rc5 {[%clk 0:00:10.8]} 46... Ra1+ {[%clk
0:00:16.3]} 47. Kd2 {[%clk 0:00:09.9]} 47... Ra2+ {[%clk 0:00:16.4]} 48. Kd3
{[%clk 0:00:09.7]} 48... Rxa7 {[%clk 0:00:16.3]} 49. Rxd5+ {[%clk 0:00:08.8]}
49... Ke6 {[%clk 0:00:16.9]} 50. Rxh5 {[%clk 0:00:09]} 50... Ra2 {[%clk
0:00:15.9]} 51. Rxg4 {[%clk 0:00:08]} 51... Rxf2 {[%clk 0:00:14.3]} 52. Re4+
{[%clk 0:00:08.4]} 52... Kf7 {[%clk 0:00:13.7]} 53. Rf4 {[%clk 0:00:08.7]} 53...
Ra2 {[%clk 0:00:12.7]} 54. Rh6 {[%clk 0:00:08.5]} 54... Ra3+ {[%clk 0:00:12.3]}
55. Kc4 {[%clk 0:00:07.6]} 55... Kg7 {[%clk 0:00:10.6]} 56. Rhxf6 {[%clk
0:00:06.3]} 56... Ra2 {[%clk 0:00:10.7]} 57. Rf7+ {[%clk 0:00:05.7]} 57... Kg6
{[%clk 0:00:10]} 58. h4 {[%clk 0:00:06]} 58... Ra4+ {[%clk 0:00:08.8]} 59. Kd5
{[%clk 0:00:04.9]} 59... Ra3 {[%clk 0:00:08.7]} 60. Kc6 {[%clk 0:00:05]} 60...
Rxg3 {[%clk 0:00:07.7]} 61. R7f6+ {[%clk 0:00:04.3]} 61... Kg7 {[%clk
0:00:07.3]} 62. R6f5 {[%clk 0:00:04.6]} 62... Rc3+ {[%clk 0:00:06.3]} 63. Kd5
{[%clk 0:00:03.6]} 63... Ra3 {[%clk 0:00:06]} 64. Rg4+ {[%clk 0:00:03.1]} 64...
Kh6 {[%clk 0:00:05.7]} 65. Rg1 {[%clk 0:00:03.5]} 65... Ra5+ {[%clk 0:00:05.2]}
66. Ke4 {[%clk 0:00:03.9]} 66... Ra4+ {[%clk 0:00:05.1]} 67. Ke5 {[%clk
0:00:04.3]} 67... Rxh4 {[%clk 0:00:04.5]} 68. Rf4 {[%clk 0:00:03.5]} 68... Rh2
{[%clk 0:00:03.2]} 69. Rf3 {[%clk 0:00:03.2]} 69... Kh7 {[%clk 0:00:03]} 70. Kf4
{[%clk 0:00:03.1]} 70... Rh4+ {[%clk 0:00:01.4]} 71. Kg3 {[%clk 0:00:03.1]}
71... Rh6 {[%clk 0:00:01.3]} 72. Kf2 {[%clk 0:00:03.3]} 1-0